[Event "10th Cesme Open-B 2024"]
[Site "Cesme"]
[Date "2024.06.25"]
[Round "4"]
[White "Akkara, Omer"]
[Black "Hasirci, Ozgur Deniz"]
[Result "0-1"]
[ECO "B50"]
[WhiteElo "1829"]
[BlackElo "1903"]
[Annotator "NA RC"]
[PlyCount "116"]
[EventDate "2024.06.23"]
[EventType "swiss"]
[EventCountry "TUR"]
[SourceTitle "playchess.com"]
[Source "ChessBase"]
[SourceQuality "1"]
[TimeControl "5400+30"]

1. e4 {[%emt 0:01:00]} c5 {[%emt 0:01:00]} 2. Nf3 {[%emt 0:00:00]} d6 {[%emt 0:00:00]} 3. c3 {[%emt 0:00:00]} Nf6 {[%emt 0:00:00]} 4. Be2 {[%emt 0:00:00]} g6 {[%emt 0:00:00]} 5. O-O {[%emt 0:00:00]} Bg7 {[%emt 0:00:00]} 6. Bb5+ {[%emt 0:00:30]} Nc6 {[%emt 0:00:00]} 7. d4 {[%emt 0:00:00]} cxd4 {[%emt 0:01:00]} 8. cxd4 {[%emt 0:00:00]} O-O {[%emt 0:00:00]} 9. Nc3 {[%emt 0:00:30]} Bg4 {[%emt 0:03:00]} 10. Be3 {[%emt 0:02:30]} a6 {[%emt 0:01:30]} 11. Be2 {[%emt 0:00:30]} d5 {[%emt 0:02:30]} 12. e5 {[%emt 0:01:30]} Ne4 {[%emt 0:00:00]} 13. h3 {[%emt 0:00:30]} Bxf3 {[%emt 0:00:00]} 14. Bxf3 {[%emt 0:00:30]} Nxc3 {[%emt 0:01:30]} 15. bxc3 {[%emt 0:00:30]} Na5 {[%emt 0:00:30]} 16. Qd3 {[%emt 0:01:30]} e6 {[%emt 0:00:30]} 17. a4 {[%emt 0:01:30]} Rc8 {[%emt 0:00:30]} 18. Bc1 {[%emt 0:00:30]} Re8 {[%emt 0:00:30]} 19. Ba3 {[%emt 0:01:30]} Bf8 {[%emt 0:00:30]} 20. Bxf8 {[%emt 0:00:00]} Rxf8 {[%emt 0:00:00]} 21. Rfb1 {[%emt 0:02:00]} Qd7 {[%emt 0:01:00]} 22. Rb4 {[%emt 0:03:30]} Rc6 {[%emt 0:00:30]} 23. Ra3 {[%emt 0:10:30]} Rfc8 {[%emt 0:00:30]} 24. Rb1 {[%emt 0:00:30]} Qc7 {[%emt 0:02:30]} 25. Rc1 {[%emt 0:01:30]} Rc4 {[%emt 0:00:00]} 26. Be2 {[%emt 0:00:30]} Qb6 {[%emt 0:02:00]} 27. Qd2 {[%emt 0:03:30]} R4c6 {[%emt 0:01:30]} 28. Rc2 {[%emt 0:02:30]} Nb3 {[%emt 0:01:30]} 29. Qd3 {[%emt 0:03:30]} Nxd4 {[%emt 0:00:30]} 30. Rd2 {[%emt 0:00:30]} Nxe2+ {[%emt 0:01:30]} 31. Rxe2 {[%emt 0:00:00]} Rc4 {[%emt 0:00:00]} 32. Qe3 {[%emt 0:03:00]} Qc6 {[%emt 0:01:00]} 33. Rb2 {[%emt 0:01:30]} Rxa4 {[%emt 0:12:30]} 34. Rb6 {[%emt 0:02:30]} Qxb6 {[%emt 0:19:30]} 35. Qxb6 {[%emt 0:00:30]} Rxa3 {[%emt 0:00:00]} 36. Qxb7 {[%emt 0:00:30]} Raxc3 {[%emt 0:00:00]} 37. Qxa6 {[%emt 0:00:00]} Rd8 {[%emt 0:00:00]} 38. Qa5 {[%emt 0:00:00]} Rcc8 {[%emt 0:00:00]} 39. Kf1 {[%emt 0:08:30]} d4 {[%emt 0:00:30]} 40. Ke2 {[%emt 0:00:30]} d3+ {[%emt 0:00:30]} 41. Kd2 {[%emt 0:00:30]} Rd5 {[%emt 0:00:00]} 42. Qa3 {[%emt 0:01:30]} Rc2+ {[%emt 0:00:00]} 43. Kd1 {[%emt 0:00:00]} Rxf2 {[%emt 0:00:30]} 44. Qa7 {[%emt 0:00:00]} Rf5 {[%emt 0:00:00]} 45. Kd2 {[%emt 0:01:30]} Rfxe5 {[%emt 0:00:00]} 46. g4 {[%emt 0:00:00]} g5 {[%emt 0:00:30]} 47. Qa6 {[%emt 0:01:00]} Rd8 {[%emt 0:02:30]} 48. Qb6 {[%emt 0:00:30]} Red5 {[%emt 0:00:00]} 49. Qb7 {[%emt 0:00:30]} h6 {[%emt 0:01:00]} 50. Qb2 {[%emt 0:03:30]} Rc8 {[%emt 0:00:00]} 51. Qb3 {[%emt 0:00:30]} Rc2+ {[%emt 0:00:00]} 52. Kd1 {[%emt 0:00:00]} Rf2 {[%emt 0:00:30]} 53. Qb6 {[%emt 0:00:00]} Rf4 {[%emt 0:00:30]} 54. Kd2 {[%emt 0:00:30]} Rfd4 {[%emt 0:00:30]} 55. Qc6 {[%emt 0:01:30]} e5 {[%emt 0:00:30]} 56. Qxh6 {[%emt 0:01:30]} e4 {[%emt 0:00:30]} 57. h4 {[%emt 0:02:30]} e3+ {[%emt 0:00:00]} 58. Kxe3 {[%emt 0:00:30]} d2 {[%emt 0:00:00]} 0-1

[Event "10th Cesme Open-B 2024"]
[Site "Cesme"]
[Date "2024.06.25"]
[Round "4"]
[White "Arslan, Levent"]
[Black "Varyemez, Ali"]
[Result "0-1"]
[ECO "A11"]
[WhiteElo "1803"]
[BlackElo "1889"]
[Annotator "NA RC"]
[PlyCount "55"]
[EventDate "2024.06.23"]
[EventType "swiss"]
[EventCountry "TUR"]
[SourceTitle "playchess.com"]
[Source "ChessBase"]
[SourceQuality "1"]
[TimeControl "5400+30"]

1. Nf3 {[%emt 0:04:00]} d5 {[%emt 0:01:00]} 2. c4 {[%emt 0:00:30]} c6 {[%emt 0:01:30]} 3. g3 {[%emt 0:02:30]} Nf6 {[%emt 0:00:30]} 4. Bg2 {[%emt 0:00:00]} Bg4 {[%emt 0:00:30]} 5. cxd5 {[%emt 0:03:00]} Bxf3 {[%emt 0:00:30]} 6. Bxf3 {[%emt 0:00:00]} cxd5 {[%emt 0:00:30]} 7. d4 {[%emt 0:05:00]} Nc6 {[%emt 0:00:30]} 8. Nc3 {[%emt 0:00:30]} e6 {[%emt 0:00:30]} 9. O-O {[%emt 0:02:30]} Bd6 {[%emt 0:03:30]} 10. e3 {[%emt 0:07:30]} O-O {[%emt 0:00:30]} 11. b3 {[%emt 0:00:00]} Qa5 {[%emt 0:01:30]} 12. Bb2 {[%emt 0:01:00]} Bb4 {[%emt 0:05:30]} 13. Na4 {[%emt 0:09:30]} Rfc8 {[%emt 0:09:30]} 14. a3 {[%emt 0:02:30]} Bd6 {[%emt 0:03:30]} 15. b4 {[%emt 0:03:30]} Qd8 {[%emt 0:00:30]} 16. Nc5 {[%emt 0:04:30]} b6 {[%emt 0:12:30]} 17. Nb7 {[%emt 0:08:30]} Qe7 {[%emt 0:01:30]} 18. Nxd6 {[%emt 0:00:30]} Qxd6 {[%emt 0:00:00]} 19. Qd3 {[%emt 0:00:30]} a6 {[%emt 0:06:00]} 20. Rac1 {[%emt 0:01:30]} b5 {[%emt 0:00:30]} 21. Rc5 {[%emt 0:11:30]} Ra7 {[%emt 0:03:30]} 22. Rfc1 {[%emt 0:07:30]} Rac7 {[%emt 0:00:30]} 23. h3 {[%emt 0:03:30]} h6 {[%emt 0:01:30]} 24. Kg2 {[%emt 0:02:30]} Nd7 {[%emt 0:17:30]} 25. Qe4 {[%emt 0:04:31]} Nxc5 {[%emt 0:10:29]} 26. dxc5 {[%emt 0:04:32]} Qd8 {[%emt 0:00:51]} 27. Rc2 {[%emt 0:04:10]} Qg5 {[%emt 0:00:22]} 28. Qg4 {[%emt 0:04:27]} 0-1

[Event "10th Cesme Open-B 2024"]
[Site "Cesme"]
[Date "2024.06.25"]
[Round "4"]
[White "Karaca, Mert"]
[Black "Rzayev, Askar Aliakbar"]
[Result "0-1"]
[ECO "A47"]
[WhiteElo "1732"]
[BlackElo "1967"]
[Annotator "NA RC"]
[PlyCount "121"]
[EventDate "2024.06.23"]
[EventType "swiss"]
[EventCountry "TUR"]
[SourceTitle "playchess.com"]
[Source "ChessBase"]
[SourceQuality "1"]
[TimeControl "5400+30"]

1. d4 {[%emt 0:01:00]} e6 {[%emt 0:01:00]} 2. Bf4 {[%emt 0:00:00]} Nf6 {[%emt 0:00:00]} 3. e3 {[%emt 0:00:00]} b6 {[%emt 0:00:00]} 4. Nf3 {[%emt 0:00:30]} Bb7 {[%emt 0:00:30]} 5. Be2 {[%emt 0:00:30]} Nh5 {[%emt 0:00:00]} 6. Bg3 {[%emt 0:01:30]} Nxg3 {[%emt 0:06:00]} 7. hxg3 {[%emt 0:00:30]} g6 {[%emt 0:00:30]} 8. c4 {[%emt 0:00:30]} Bg7 {[%emt 0:00:30]} 9. Nc3 {[%emt 0:00:30]} d6 {[%emt 0:00:30]} 10. Qd2 {[%emt 0:14:30]} Nd7 {[%emt 0:00:30]} 11. O-O-O {[%emt 0:11:30]} Qe7 {[%emt 0:00:30]} 12. e4 {[%emt 0:01:30]} O-O-O {[%emt 0:02:30]} 13. a4 {[%emt 0:08:30]} h5 {[%emt 0:02:30]} 14. Kb1 {[%emt 0:01:30]} c5 {[%emt 0:07:30]} 15. Qc2 {[%emt 0:19:30]} a6 {[%emt 0:08:30]} 16. a5 {[%emt 0:11:30]} bxa5 {[%emt 0:02:30]} 17. Qa4 {[%emt 0:00:30]} cxd4 {[%emt 0:00:30]} 18. Nxd4 {[%emt 0:00:30]} Nc5 {[%emt 0:00:30]} 19. Qxa5 {[%emt 0:01:30]} Bxd4 {[%emt 0:02:30]} 20. Rxd4 {[%emt 0:01:30]} Nb3 {[%emt 0:00:00]} 21. Qb6 {[%emt 0:00:30]} Nxd4 {[%emt 0:00:00]} 22. Qxd4 {[%emt 0:00:00]} Qg5 {[%emt 0:09:30]} 23. b4 {[%emt 0:06:51]} h4 {[%emt 0:16:30]} 24. b5 {[%emt 0:04:29]} Qe5 {[%emt 0:08:30]} 25. Qxe5 {[%emt 0:02:50]} dxe5 {[%emt 0:02:30]} 26. gxh4 {[%emt 0:00:59]} axb5 {[%emt 0:00:00]} 27. cxb5 {[%emt 0:00:00]} Rd4 {[%emt 0:00:00]} 28. f3 {[%emt 0:00:45]} f5 {[%emt 0:00:30]} 29. exf5 {[%emt 0:01:07]} exf5 {[%emt 0:00:30]} 30. g3 {[%emt 0:00:27]} Kd7 {[%emt 0:02:30]} 31. Kc2 {[%emt 0:06:05]} Kc7 {[%emt 0:02:30]} 32. Ra1 {[%emt 0:02:43]} Ra8 {[%emt 0:04:30]} 33. Rh1 {[%emt 0:02:07]} Rdd8 {[%emt 0:02:30]} 34. h5 {[%emt 0:00:59]} g5 {[%emt 0:00:30]} 35. h6 {[%emt 0:00:25]} g4 {[%emt 0:00:00]} 36. Rf1 {[%emt 0:00:00]} gxf3 {[%emt 0:01:54]} 37. Bxf3 {[%emt 0:00:27]} e4 {[%emt 0:00:15]} 38. Be2 {[%emt 0:00:00]} Rh8 {[%emt 0:02:53]} 39. Rxf5 {[%emt 0:00:23]} Rxh6 {[%emt 0:00:00]} 40. g4 {[%emt 0:01:04]} Rh3 {[%emt 0:01:38]} 41. Bc4 {[%emt 0:00:39]} Ra3 {[%emt 0:01:07]} 42. b6+ {[%emt 0:00:36]} Kxb6 {[%emt 0:00:56]} 43. Rb5+ {[%emt 0:00:19]} Kc7 {[%emt 0:00:46]} 44. Rb3 {[%emt 0:00:11]} Rxb3 {[%emt 0:00:11]} 45. Bxb3 {[%emt 0:00:12]} Kd6 {[%emt 0:00:00]} 46. Kd2 {[%emt 0:01:11]} Ke5 {[%emt 0:00:00]} 47. Bc4 {[%emt 0:00:31]} Kd4 {[%emt 0:00:20]} 48. Nb5+ {[%emt 0:00:48]} Kxc4 {[%emt 0:00:30]} 49. Nd6+ {[%emt 0:00:00]} Kb4 {[%emt 0:00:39]} 50. Nxb7 {[%emt 0:00:05]} Rd3+ {[%emt 0:00:00]} 51. Ke2 {[%emt 0:00:08]} Rd7 {[%emt 0:00:15]} 52. Ke3 {[%emt 0:00:00]} Rxb7 {[%emt 0:00:11]} 53. Kxe4 {[%emt 0:00:12]} Kc5 {[%emt 0:00:00]} 54. Kf5 {[%emt 0:00:00]} Kd6 {[%emt 0:00:12]} 55. Kf6 {[%emt 0:00:09]} Rb1 {[%emt 0:00:30]} 56. g5 {[%emt 0:00:00]} Rf1+ {[%emt 0:00:00]} 57. Kg7 {[%emt 0:00:00]} Ke7 {[%emt 0:00:07]} 58. g6 {[%emt 0:00:00]} Rg1 {[%emt 0:01:05]} 59. Kh7 {[%emt 0:00:12]} Kf6 {[%emt 0:00:00]} 60. g7 {[%emt 0:00:21]} Rxg7+ {[%emt 0:00:25]} 61. Kh8 {[%emt 0:00:00]} 0-1